Workbook

Sheet OSO
B2: COMPANY NAME | C2: DATE ORDERED | D2: QTY | E2: PART NO | F2: DESCRIPTION | G2: PRICE | H2: DATE REQ. | I2: P/O NO | J2: JOB NO | K2: REMARKS | M2: TOTAL
M3: =G3*D3 -> 0
M4: 0
M5: 0
M6: 0
M7: 0
M8: 0
M9: 0
M10: 0
M11: 0
M12: 0
M13: 0
B14: AGRIGEL ORDERS: | M14: 0
M15: 0
M16: 0
M17: 0
M18: 0
B19: REPAIRS: | G19: QUOTED | H19: STATUS | I19: ORDER No | J19: DELIV. No | K19: JOB No | M19: =SUM(M3:M18) -> 0
M20: =G20*D20 -> 0
M21: 0
M22: 0
M23: 0
M24: 0
M25: 0
M26: 0
M27: =SUM(M19:M26) -> 0

Sheet Statement - VHS
A2: Manufacturers of Hydraulic Components | F2: STATEMENT
A3: P.O. Box 2892, Delmas, 2210  Cnr Road 10 and Driedoring Street, Delmas | F3: JANUARY 2022
A4: Tel: 013 668 0000  Fax: 086 659 8207
A5: VAT Number: 4810183410
A7: STATEMENT
B10: VHS TECH SERVICES CC
B11: Unit 3 Astro Place
B12: c/o Fleming & vd Bijl Street
B13: Meadowdale
B14: Germiston
A16: DATE | C16: REFERENCE | D16: DESCRIPTION | F16: AMOUNT | G16: BALANCE
A18: 2015-10-26 | C18: Tax Invoice - PI1649 | F18: 11730.6 | G18: =F18 -> 11730.6
A19: 2015-11-01 | C19: Balance brought down | G19: =G18 -> 11730.6
A20: 2015-11-02 | C20: Tax Invoice - PI1668 | F20: 1824 | G20: =G19+F20 -> 13554.6
A21: 2015-11-24 | C21: Payment - Thank you! | F21: -11730.6 | G21: =G20+F21 -> 1824
A22: 2021-11-18 | C22: AI4348 | D22: Tax Invoice | F22: 34419.5 | G22: =F22 -> 34419.5
A23: 2021-12-14 | C23: PI4374 | D23: Tax Invoice | F23: 460 | G23: =G22+F23 -> 34879.5
A24: 2022-01-31 | C24: PI4392 | D24: Tax Invoice | F24: 68839 | G24: =G23+F24 -> 103718.5
A59: + 90 Days | C59: 90 Days | D59: 60 Days | E59: 30 Days | F59: Current | G59: Total Due
C60: 0 | D60: =F22 -> 34419.5 | E60: =F23 -> 460 | F60: =F24 -> 68839 | G60: =SUM(A60:F60) -> 103718.5

Sheet Statement -Elgin
A2: Manufacturers of Hydraulic Components | F2: STATEMENT
A3: P.O. Box 2892, Delmas, 2210  Cnr Road 10 and Driedoring Street, Delmas | F3: JANUARY 2022
A4: Tel: 013 668 0000  Fax: 086 659 8207
A5: VAT Number: 4810183410
A7: STATEMENT
B10: ELGIN FLAMEPROOFING
B11: P.O. Box 2164
B12: Kempton Park
B13: 1620
A16: DATE | C16: REFERENCE | D16: DESCRIPTION | F16: AMOUNT | G16: BALANCE
A18: 2015-10-26 | C18: Tax Invoice - PI1649 | F18: 11730.6 | G18: =F18 -> 11730.6
A19: 2015-11-01 | C19: Balance brought down | G19: =G18 -> 11730.6
A20: 2015-11-02 | C20: Tax Invoice - PI1668 | F20: 1824 | G20: =G19+F20 -> 13554.6
A21: 2015-11-24 | C21: Payment - Thank you! | F21: -11730.6 | G21: =G20+F21 -> 1824
A23: 2021-01-21 | C23: PI3955 | D23: Tax Invoice | F23: 1415.5 | G23: =G22+F23 -> 1415.5
A24: 2021-01-22 | C24: PI3961 | D24: Tax Invoice | F24: 2944 | G24: =G23+F24 -> 4359.5
A59: + 90 Days | C59: 90 Days | D59: 60 Days | E59: 30 Days | F59: Current | G59: Total Due
A60: =F23+F24 -> 4359.5 | E60: 0 | F60: 0 | G60: =SUM(A60:F60) -> 4359.5

Sheet Statement - Powerforce
A2: Manufacturers of Hydraulic Components | F2: STATEMENT
A3: P.O. Box 2892, Delmas, 2210  Cnr Road 10 and Driedoring Street, Delmas | F3: JUNE 2021
A4: Tel: 013 668 0000  Fax: 086 659 8207
A5: VAT Number: 4810183410
A7: STATEMENT
B10: POWERFORCE HYDRAULICS
B11: P.O. Box 660
B12: Trichardt
B13: 2300
A16: DATE | C16: TRANSACTION | F16: AMOUNT | G16: BALANCE
A18: 2021-05-12 | C18: PI4075 | D18: Tax Invoice | F18: 4140 | G18: =F18 -> 4140
A19: 2021-05-14 | C19: PI4079 | D19: Tax Invoice | F19: 5865 | G19: =G18+F19 -> 10005
A54: + 90 Days | C54: 90 Days | D54: 60 Days | E54: 30 Days | F54: Current | G54: Total Due
E55: =F18+F19 -> 10005 | F55: 0 | G55: =SUM(A55:F55) -> 10005

Sheet Statement - Discovery Drilling
A2: Manufacturers of Hydraulic Components | F2: STATEMENT
F3: 2022-03-10
A4: Tel: 013 668 0000  Fax: 086 659 8207
A5: VAT Number: 4810183410
A7: STATEMENT
B10: DISCOVERY DRILLING
B11: P.O. BOX 10
B12: BOSHOEK
B13: 301
A15: DATE | C15: TRANSACTION | F15: AMOUNT | G15: BALANCE
A17: 2021-03-12 | C17: Payment - Thank you! | F17: -23000 | G17: =F17 -> -23000
B18: 2021-04-01 | C18: Tax Invoice - PI3999 | F18: 307050 | G18: =G17+F18 -> 284050
B19: 2021-07-01 | C19: Tax Invoice - PI4132 | F19: 20700 | G19: =G18+F19 -> 304750
B20: 2021-07-07 | C20: Payment - Thank you! | F20: -150000 | G20: =G19+F20 -> 154750
B21: 2021-09-02 | C21: Payment - Thank you! | F21: -100000 | G21: =G20+F21 -> 54750
B22: 2021-10-27 | C22: Tax Invoice - PI4308 | F22: 22540 | G22: =G21+F22 -> 77290
B23: 2021-10-27 | C23: Tax Invoice - PI4309 | F23: 21781 | G23: 99071
B24: 2021-12-03 | C24: Payment - Thank you! | F24: -99071 | G24: 0
B25: 2022-02-07 | C25: Tax Invoice - PI4397 | F25: 63940 | G25: 63940
B26: 2022-03-04 | C26: Payment - Thank you! | F26: -63940 | G26: 0
A52: + 90 Days | C52: 90 Days | D52: 60 Days | E52: 30 Days | F52: Current | G52: Total Due
G53: =SUM(A53:F53) -> 0

Sheet Statement - BHS
A2: Manufacturers of Hydraulic Components | F2: STATEMENT
A3: P.O. Box 2892, Delmas, 2210  Cnr Road 10 and Driedoring Street, Delmas | F3: MAY 2021
A4: Tel: 013 668 0000  Fax: 086 659 8207
A5: VAT Number: 4810183410
A7: STATEMENT
B10: BHS ENTERPRISES CC
B11: P.O. Box 22845
B12: Middelburg
B13: 1050
B14: Att: Tienie
A16: DATE | C16: TRANSACTION | F16: AMOUNT | G16: BALANCE
A18: 2017-01-01 | C18: Balance brought down | G18: 23039.4
A19: 2017-01-13 | C19: Tax Invoice - PI2170 | F19: 29115.6 | G19: =G18+F19 -> 52155
A20: 2017-01-30 | C20: Payment - Thank You! | F20: -23039.4 | G20: =G19+F20 -> 29115.6
A21: 2017-02-01 | C21: Balance brought down | G21: =G20 -> 29115.6
A22: 2017-02-07 | C22: Tax Invoice - PI2199 | F22: 1288.2 | G22: =G21+F22 -> 30403.8
A23: 2017-02-14 | C23: Tax Invoice - PI2206 | F23: 2439.6 | G23: =G22+F23 -> 32843.4
A24: 2017-02-27 | C24: Payment - Thank You! | F24: -29115.6 | G24: =G23+F24 -> 3727.8
A25: 2017-03-28 | C25: Payment - Thank You! | F25: -3727.8 | G25: =G24+F25 -> 0
A26: 2017-04-07 | C26: Tax Invoice - PI2264 | F26: 9667.2 | G26: 9667.2
A27: 2017-04-10 | C27: Tax Invoice - PI2265 | F27: 1710 | G27: 11377.2
A28: 2017-05-29 | C28: Payment - Thank You! | F28: -11377.2 | G28: 0
A29: 2017-05-30 | C29: Tax Invoice - PI2324 | F29: 3357.3 | G29: 3357.3
A30: 2018-02-05 | C30: Tax Invoice - PI2624 | F30: 4924.8 | G30: =F30 -> 4924.8
A31: 2018-03-26 | C31: Payment - Thank You! | F31: -4924.8 | G31: =G30+F31 -> 0
A32: 2018-07-23 | C32: Tax Invoice - PI2760 | F32: 4496.5 | G32: 4496.5
A33: 2018-08-23 | C33: Payment - Thank You! | F33: -4496.5 | G33: 0
A34: 2018-08-24 | C34: Tax Invoice - PI2801 | F34: 11339 | G34: 11339
A35: 2018-09-25 | C35: Payment - Thank You! | F35: -11339 | G35: 0
A36: 2018-12-10 | C36: Tax Invoice - PI3018 | F36: 5980 | G36: 5980
A37: 2019-01-01 | C37: Balance brought down | G37: 5980
A38: 2019-01-24 | C38: Tax Invoice - PI3051 | F38: 7544 | G38: =G37+F38 -> 13524
A39: 2019-01-30 | C39: Payment - Thank You! | F39: -5980 | G39: =G38+F39 -> 7544
A40: 2019-02-01 | C40: Balance brought down | G40: =G39 -> 7544
A41: 2019-02-06 | C41: Tax Invoice - PI3057 | F41: 2932.5 | G41: =G39+F41 -> 10476.5
A42: 2019-02-08 | C42: Tax Invoice - PI3059 | F42: 2760 | G42: =G41+F42 -> 13236.5
A43: 2019-02-25 | C43: Payment - Thank You! | F43: -7544 | G43: 5692.5
A44: 2019-03-27 | C44: Payment - Thank You! | F44: -2932.5 | G44: 2760
A45: 2019-04-11 | C45: Tax Invoice - PI3121 | F45: 9418.5 | G45: 12178.5
A46: 2019-04-11 | C46: Tax Invoice - PI3122 | F46: 2714 | G46: 14892.5
A47: 2019-04-29 | C47: Tax Invoice - PI3137 | F47: 13800 | G47: 28692.5
A48: 2019-04-29 | C48: Tax Invoice - PI3138 | F48: 4071 | G48: 32763.5
A49: 2019-06-06 | C49: Tax Invoice - PI3175 | F49: 4830 | G49: 37593.5
A50: 2019-06-13 | C50: Tax Invoice - PI3189 | F50: 4945 | G50: 42538.5
A51: 2019-06-13 | C51: Tax Invoice - PI3190 | F51: 7567 | G51: 50105.5
A52: 2019-06-13 | C52: Payment - Thank You! | F52: -30003.5 | G52: 20102
A53: 2019-07-09 | C53: Payment - Thank You! | F53: -17342 | G53: 2760
A54: 2019-09-30 | C54: Tax Invoice - PI3316 | F54: 8510 | G54: 11270
A55: 2020-06-02 | C55: Tax Invoice - PI3601 | F55: 4738 | G55: =F55 -> 4738
A57: 2021-03-01 | C57: PI4000 | D57: Tax Invoice | F57: 2415 | G57: =F57 -> 2415
I60: =F59+F57 -> 2415
A94: + 90 Days | C94: 90 Days | D94: 60 Days | E94: 30 Days | F94: Current | G94: Total Due
F95: =F57 -> 2415 | G95: =SUM(A95:F95) -> 2415

Sheet Statement - Delante
A2: Manufacturers of Hydraulic Components | F2: STATEMENT
A3: P.O. Box 2892, Delmas, 2210  Cnr Road 10 and Driedoring Street, Delmas | F3: SEPTEMBER 2018
A4: Tel: 013 668 0000  Fax: 086 659 8207
A5: VAT Number: 4810183410
A7: STATEMENT
B10: DELANTE
B11: 26 Harriet Avenue
B12: Driehoek
B13: Germiston
B14: 1401
A16: DATE | C16: TRANSACTION | F16: AMOUNT | G16: BALANCE
A18: 2018-08-01 | C18: Balance brought down | F18: 4945 | G18: =F18 -> 4945
A19: 2018-08-02 | C19: Payment | F19: -4945 | G19: =G18+F19 -> 0
A20: 2018-08-14 | C20: Tax Invoice - PI2779 | F20: 230 | G20: =G19+F20 -> 230
A21: 2018-09-13 | C21: Tax Invoice - PI2832 | F21: 5175 | G21: =G20+F21 -> 5405
A22: 2018-09-13 | C22: Tax Invoice - PI2833 | F22: 5175 | G22: =G21+F22 -> 10580
A55: + 90 Days | C55: 90 Days | D55: 60 Days | E55: 30 Days | F55: Current | G55: Total Due
E56: =F20 -> 230 | F56: =SUM(F21:F22) -> 10350 | G56: =SUM(A56:F56) -> 10580

Sheet Statement - Coalseam
A2: Manufacturers of Hydraulic Components | G2: STATEMENT
A3: P.O. Box 2892, Delmas, 2210  Cnr Road 10 and Driedoring Street, Delmas | G3: =TODAY() -> 2022-03-10
A4: Tel: 013 668 0000  Fax: 086 659 8207
A5: VAT Number: 4810183410
A7: STATEMENT
B10: COALSEAM HYDRAULICS & MINING SUPPLIES
B11: PO Box 1780
B12: Edenvale
B13: 1610
A16: DATE | C16: TRANSACTION | E16: ORDER NUMBER | G16: AMOUNT | H16: BALANCE
A18: 2018-06-18 | C18: Tax Invoice - PI2727 | G18: 969 | H18: =G18 -> 969 | I18: ü
A19: 2018-06-20 | C19: Tax Invoice - PI2729 | E19: B24948 | G19: 5750 | H19: =H18+G19 -> 6719 | I19: ü
A20: 2018-06-20 | C20: Tax Invoice - PI2730 | E20: B26064 | G20: 5750 | H20: =H19+G20 -> 12469
A21: 2018-06-21 | C21: Payment - B26064 | G21: -28750 | H21: =H20+G21 -> -16281 | I21: -
A22: 2018-07-31 | C22: Payment - B27049 | G22: -25875 | H22: =H21+G22 -> -42156 | I22: -
A23: 2018-08-01 | C23: Tax Invoice - PI2770 | E23: B27049 | G23: 25875 | H23: -16281 | I23: ü
A24: 2018-08-16 | C24: Tax Invoice - PI2781 | E24: B27752 | G24: 26496 | H24: =H23+G24 -> 10215 | I24: ü
A25: 2018-08-16 | C25: Payment - B27752 | G25: -26496 | H25: -16281
A26: 2018-08-18 | C26: Tax Invoice - PI2783 | E26: B26064 | G26: 23000 | H26: 6719 | I26: ü
A27: 2018-08-21 | C27: Tax Invoice - PI2791 | E27: B28013 | G27: 11500 | H27: 18219
A28: 2018-08-22 | C28: Payment - B28013 | G28: -11500 | H28: 6719
A29: 2018-08-22 | C29: Tax Invoice - PI2813 | E29: B28121 | G29: 14375 | H29: 21094
A30: 2018-09-03 | C30: Payment - Thank you! | G30: -14375 | H30: 6719
C31: Credit Note - PI3065 | G31: =-6719+3516 -> -3203 | H31: 3516
A32: 2018-10-01 | C32: Balance brought down | H32: =H31 -> 3516
A33: 2018-10-15 | C33: Tax Invoice - PI2914 | E33: B29181 | G33: 10350 | H33: =H31+G33 -> 13866
A34: 2018-10-12 | C34: Payment - Thank you! | G34: -10350 | H34: 3516
A35: 2018-11-21 | C35: Tax Invoice - PI2996 | E35: B30606 | G35: 2875 | H35: 6391
A36: 2018-11-21 | C36: Tax Invoice - PI2997 | E36: B31488 | G36: 2875 | H36: 9266
A37: 2018-11-21 | C37: Tax Invoice - PI2998 | E37: B30758 | G37: 5750 | H37: 15016
A38: 2018-11-21 | C38: Tax Invoice - PI2999 | E38: B30607 | G38: 2875 | H38: =H37+G38 -> 17891
A39: 2018-11-22 | C39: Payment - Thank you! | G39: -15525 | H39: 2366
A40: 2018-12-12 | C40: Tax Invoice - PI3023 | E40: B31423 | G40: 2875 | H40: 5241
A41: 2018-12-12 | C41: Tax Invoice - PI3024 | E41: B31424 | G41: 2875 | H41: 8116
A42: 2019-03-04 | C42: Tax Invoice - PI3094 | E42: B30609 | G42: 2875 | H42: 10991
A43: 2019-03-07 | C43: Tax Invoice - PI3076 | E43: B32967 | G43: 2875 | H43: =H42+G43 -> 13866
A44: 2019-03-07 | C44: Payment - Thank you! | G44: -2875 | H44: 10991
A45: 2019-03-25 | C45: Payment - Thank you! | G45: -10991 | H45: 0
H46: =G46 -> 0
A47: 2019-11-28 | C47: Tax Invoice - PI3443 | E47: B38663 | G47: 28750 | H47: =H46+G47 -> 28750
A48: 2020-12-09 | C48: Tax Invoice - PI3459 | E48: B38799 | G48: 5750 | H48: 34500
A49: 2020-12-09 | C49: Payment - B38799 | G49: -5750 | H49: 28750
A50: 2019-12-17 | C50: Tax Invoice - PI3468 | E50: B38857 | G50: 5750 | H50: 34500
A51: 2020-01-28 | C51: Payment - B39021 | G51: -11500 | H51: 23000
A52: 2020-01-28 | C52: Payment - B38663 | G52: -2875 | H52: 20125
A53: 2020-01-29 | C53: Payment - B38663 | G53: -2875 | H53: 17250
A54: 2020-02-04 | C54: Tax Invoice - PI3488 | E54: B39021 | G54: 11500 | H54: 28750
A55: 2020-02-07 | C55: Payment - B38663 | G55: -14375 | H55: 14375
A56: 2020-02-25 | C56: Payment - B39474 | G56: -2875 | H56: 11500
A57: 2020-02-26 | C57: Tax Invoice - PI3514 | E57: B39474 | G57: 2875 | H57: 14375
A58: 2020-02-26 | C58: Payment - B38663 | G58: -8625 | H58: 5750 | J58: =G58+G55+G53+G52 -> -28750
A59: 2020-06-17 | C59: Payment - B40528 | G59: -5750 | H59: 0
A60: 2020-06-18 | C60: Tax Invoice - PI3631 | E60: B40528 | G60: 5750 | H60: 5750
A61: 2020-07-08 | C61: Tax Invoice - PI3665 | E61: B40757 | G61: 5750 | H61: =H60+G61 -> 11500
A62: 2020-07-08 | C62: Payment - B40757 | G62: -5750 | H62: 5750
A63: 2020-07-09 | C63: Tax Invoice - PI3667 | E63: B40788 | G63: 2875 | H63: 8625
A64: 2020-07-09 | C64: Tax Invoice - PI3668 | E64: B40791 | G64: 2875 | H64: 11500
A65: 2020-07-09 | C65: Tax Invoice - PI3669 | E65: B40792 | G65: 2875 | H65: 14375
A66: 2020-07-09 | C66: Payment - B40788 | G66: -2875 | H66: 11500
A67: 2020-07-09 | C67: Payment - B40791 | G67: -2875 | H67: 8625
A68: 2020-07-09 | C68: Payment - B40792 | G68: -2875 | H68: 5750
A69: 2020-07-20 | C69: Tax Invoice - PI3677 | E69: B40880 | G69: 2875 | H69: 8625
A70: 2020-07-20 | C70: Tax Invoice - PI3678 | E70: B40881 | G70: 2875 | H70: 11500
A71: 2020-07-20 | C71: Tax Invoice - PI3679 | E71: B40882 | G71: 2875 | H71: 14375
A72: 2020-07-21 | C72: Payment - B40880 | G72: -2875 | H72: 11500
A73: 2020-07-21 | C73: Payment - B40881 | G73: -2875 | H73: 8625
A74: 2020-07-21 | C74: Payment - B40882 | G74: -2875 | H74: 5750
A83: + 90 Days | C83: 90 Days | D83: 60 Days | F83: 30 Days | G83: Current | H83: Total Due
A84: =H58 -> 5750 | H84: =SUM(A84:G84) -> 5750

Sheet Statement - CIH
A2: Manufacturers of Hydraulic Components | F2: STATEMENT
A3: P.O. Box 2892, Delmas, 2210  Cnr Road 10 and Driedoring Street, Delmas | F3: AUGUST 2018
A4: Tel: 013 668 0000  Fax: 086 659 8207
A5: VAT Number: 4810183410
A7: STATEMENT
B10: COMMERCIAL INDUSTRIAL HYDRAULICS CC
B11: 6 Asset Road
B12: Jet Park
B13: 1467
A15: DATE | C15: TRANSACTION | F15: AMOUNT | G15: BALANCE
A17: 2018-08-24 | C17: Tax Invoice - PI2800 | F17: 2850 | G17: =F17 -> 2850
A18: 2018-08-28 | C18: Tax Invoice - PI2805 | F18: 6934.5 | G18: =G17+F18 -> 9784.5
A55: + 90 Days | C55: 90 Days | D55: 60 Days | E55: 30 Days | F55: Current | G55: Total Due
F56: =SUM(F17:F19) -> 9784.5 | G56: =G18 -> 9784.5

Sheet Statement - Rock Mining Machine
A2: Manufacturers of Hydraulic Components | F2: STATEMENT
A3: P.O. Box 2892, Delmas, 2210  Cnr Road 10 and Driedoring Street, Delmas | F3: AUGUST 2018
A4: Tel: 013 668 0000  Fax: 086 659 8207
A5: VAT Number: 4810183410
A7: STATEMENT
B10: ROCK MINING MACHINES
B11: PO Box 500
B12: Witbank
B13: 1035
A15: DATE | C15: TRANSACTION | F15: AMOUNT | G15: BALANCE
A17: 2018-08-25 | C17: Tax Invoice - PI2802 | F17: 53521 | G17: =F17 -> 53521
A18: 2018-08-25 | C18: Tax Invoice - PI2803 | F18: 1150 | G18: =G17+F18 -> 54671
A19: 2018-08-30 | C19: Tax Invoice - PI2812 | F19: 22356 | G19: 77027
A20: 2018-08-30 | C20: Payment - Thank you | F20: -70782.5 | G20: 6244.5
A55: + 90 Days | C55: 90 Days | D55: 60 Days | E55: 30 Days | F55: Current | G55: Total Due
F56: =G20 -> 6244.5 | G56: =SUM(A56:F56) -> 6244.5

Sheet Statement - Largostax
A2: Manufacturers of Hydraulic Components | F2: STATEMENT
A3: P.O. Box 2892, Delmas, 2210  Cnr Road 10 and Driedoring Street, Delmas | F3: APRIL 2017
A4: Tel: 013 668 0000  Fax: 086 659 8207
A5: VAT Number: 4810183410
A7: STATEMENT
B10: LARGOSTAX CC
B11: P.O. Box 12097
B12: Benoryn
B13: 1504
A15: DATE | C15: TRANSACTION | F15: AMOUNT | G15: BALANCE
A17: 2013-01-07 | C17: Tax Invoice - PI0471 | F17: 5016 | G17: =F17 -> 5016
A18: 2013-01-16 | C18: Tax Invoice - PI0477 | F18: 5016 | G18: =G17+F18 -> 10032
A19: 2013-02-22 | C19: Tax Invoice - PI0516 | F19: 4560 | G19: =G18+F19 -> 14592
A20: 2013-04-01 | C20: Opening Balance | G20: =G19 -> 14592
A21: 2013-02-02 | C21: Payment received | F21: -14592 | G21: =G20+F21 -> 0
A22: 2014-11-05 | C22: Tax Invoice - PI1265 | F22: 1368 | G22: =G21+F22 -> 1368
A23: 2014-11-05 | C23: Tax Invoice - PI1266 | F23: 1368 | G23: =G22+F23 -> 2736
A24: 2015-01-14 | C24: Tax Invoice - PI1337 | F24: 769.5 | G24: =F24 -> 769.5
A25: 2015-04-02 | C25: Payment received | F25: -769.5 | G25: =G24+F25 -> 0
A26: 2017-03-24 | C26: Tax Invoice - PI2246 | F26: 2793 | G26: =G25+F26 -> 2793
A64: + 90 Days | C64: 90 Days | D64: 60 Days | E64: 30 Days | F64: Current | G64: Total Due
E65: =F26 -> 2793 | G65: =SUM(A65:F65) -> 2793

Sheet Statement - Vex Mining
A2: Manufacturers of Hydraulic Components | F2: STATEMENT
A3: P.O. Box 2892, Delmas, 2210  Cnr Road 10 and Driedoring Street, Delmas | F3: AUGUST 2016
A4: Tel: 013 668 0000  Fax: 086 659 8207
A5: VAT Number: 4810183410
A7: STATEMENT
B10: VEX MINING REPAIRS
B11: 19 Harriet Avenue
B12: Germiston
A15: DATE | C15: TRANSACTION | F15: AMOUNT | G15: BALANCE
A17: 2013-01-07 | C17: Tax Invoice - PI0471 | F17: 5016 | G17: =F17 -> 5016
A18: 2013-01-16 | C18: Tax Invoice - PI0477 | F18: 5016 | G18: =G17+F18 -> 10032
A19: 2013-02-22 | C19: Tax Invoice - PI0516 | F19: 4560 | G19: =G18+F19 -> 14592
A20: 2013-04-01 | C20: Opening Balance | G20: =G19 -> 14592
A21: 2013-02-02 | C21: Payment received | F21: -14592 | G21: =G20+F21 -> 0
A22: 2014-11-05 | C22: Tax Invoice - PI1265 | F22: 1368 | G22: =G21+F22 -> 1368
A23: 2014-11-05 | C23: Tax Invoice - PI1266 | F23: 1368 | G23: =G22+F23 -> 2736
A24: 2015-01-14 | C24: Tax Invoice - PI1337 | F24: 769.5 | G24: =F24 -> 769.5
A25: 2015-04-02 | C25: Payment received | F25: -769.5 | G25: =G24+F25 -> 0
A26: 2016-07-15 | C26: Tax Invoice - PI1913 | F26: 3192 | G26: =G25+F26 -> 3192
A64: + 90 Days | C64: 90 Days | D64: 60 Days | E64: 30 Days | F64: Current | G64: Total Due
D65: =G26 -> 3192 | G65: =SUM(A65:F65) -> 3192

Sheet Statement - S. Automac
A2: Manufacturers of Hydraulic Components | F2: STATEMENT
A3: P.O. Box 2892, Delmas, 2210  Cnr Road 10 and Driedoring Street, Delmas | F3: MAY 2015
A4: Tel: 013 668 0000  Fax: 086 659 8207
A5: VAT Number: 4810183410
A7: STATEMENT
B10: S. AUTOMAC SERVICES CC
B11: P.O. Box 91
B12: Welkom
B13: 9460
A15: DATE | C15: TRANSACTION | E15: AMOUNT | F15: DISCOUNT - 25% | G15: BALANCE
A17: 2015-05-01 | C17: Balance brought forward | G17: 0
A18: 2015-05-06 | C18: Payment - Thank you! | E18: -484.48 | G18: =G17+E18 -> -484.48
A19: 2015-05-08 | C19: Tax Invoice - PI1439 | E19: 4560 | F19: =E19*0.25 -> 1140 | G19: =G18+E19-F19 -> 2935.52
A55: + 90 Days | C55: 90 Days | D55: 60 Days | E55: 30 Days | F55: Current | G55: Total Due
F56: =G19 -> 2935.52 | G56: =G17 -> 0
D58: =SUM(D56:E56) -> 0

Sheet Statement - Hydrapower
A2: Manufacturers of Hydraulic Components | F2: STATEMENT
F3: MARCH 2016
A4: Tel: 013 668 0000  Fax: 086 659 8207
A5: VAT Number: 4810183410
A7: STATEMENT
B10: HYDRAPOWER HYDRAULICS
B11: 20 Paterson Street
B12: Newcastle
A16: DATE | C16: TRANSACTION | F16: AMOUNT | G16: BALANCE
A18: 2015-01-26 | C18: Tax Invoice - PI1354 | F18: 4366.2 | G18: =F18 -> 4366.2
A19: 2015-03-02 | C19: Payment - Thank You! | F19: -4366.2 | G19: =G18+F19 -> 0
A20: 2015-12-10 | C20: Tax Invoice - PI1726 | F20: 16222.2 | G20: 16222.2
A21: 2016-02-01 | C21: Payment - Thank You! | F21: -16222.2 | G21: 0
A22: 2016-02-01 | C22: Tax Invoice - PI1758 | F22: 2576.4 | G22: 2576.4
A23: 2016-02-12 | C23: Tax Invoice - PI1770 | F23: 957.6 | G23: 3534
A24: 2016-03-01 | C24: Tax Invoice - PI1781 | F24: 27816 | G24: 31350
A25: 2016-03-17 | C25: Tax Invoice - PI1796 | F25: 3180.6 | G25: 34530.6
A57: + 90 Days | C57: 90 Days | D57: 60 Days | E57: 30 Days | F57: Current | G57: Total Due
E58: =F22+F23 -> 3534 | F58: =F24+F25 -> 30996.6 | G58: =SUM(A58:F58) -> 34530.6

Sheet Statement - Contour
A2: Manufacturers of Hydraulic Components | F2: STATEMENT
A3: P.O. Box 2892, Delmas, 2210  Cnr Road 10 and Driedoring Street, Delmas | F3: JUNE 2013
A4: Tel: 013 668 0000  Fax: 086 659 8207
A5: VAT Number: 4810183410
A7: STATEMENT
B10: CONTOUR PARTS & ENGINEERING
B11: 18 Bronze Street
B12: Empangeni
A15: DATE | C15: TRANSACTION | F15: AMOUNT | G15: BALANCE
A17: 2013-05-23 | C17: Tax Invoice - PI0600 | F17: 23860.2 | G17: =F17 -> 23860.2
A55: + 90 Days | C55: 90 Days | D55: 60 Days | E55: 30 Days | F55: Current | G55: Total Due
E56: =F17 -> 23860.2 | G56: =SUM(A56:F56) -> 23860.2

Sheet Statement - FLP Diesel
A2: Manufacturers of Hydraulic Components | F2: STATEMENT
A3: P.O. Box 2892, Delmas, 2210  Cnr Road 10 and Driedoring Street, Delmas | F3: FEBRUARY 2015
A4: Tel: 013 668 0000  Fax: 086 659 8207
A5: VAT Number: 4810183410
A7: STATEMENT
B10: FLP DIESEL
B11: 10 Meter Street
B12: Middelburg
B13: 1050
B14: Email: flpdiesel@telkomsa.net
A16: DATE | C16: TRANSACTION | F16: AMOUNT | G16: BALANCE
A18: 2014-09-01 | C18: Tax Invoice - PI1139 | F18: 3522.6 | G18: =F18 -> 3522.6
A55: + 90 Days | C55: 90 Days | D55: 60 Days | E55: 30 Days | F55: Current | G55: Total Due
F56: =F18 -> 3522.6 | G56: =SUM(A56:F56) -> 3522.6

Sheet StateRecon - Tshwane
A2: Manufacturers of Hydraulic Components | F2: MONTH ENDING:
A3: P.O. Box 2892, Delmas, 2210  Cnr Road 10 and Driedoring Street, Delmas | F3: AUGUST 2013
A4: Tel: 013 668 0000  Fax: 086 659 8207
A5: VAT Number: 4810183410
A7: RECONCILIATION
B10: TSHWANE HYDRAULICS CC
B11: PO Box 807
B12: Olifantsfontein
B13: 1665
B15: ATT: Gruchen
B16: Please view the recon of goods recevied and supplied between our companies below:
A18: DATE | C18: TRANSACTION | E18: DEBIT | F18: CREDIT | G18: BALANCE
A20: 2013-07-01 | C20: Balance due by Tshwane as per statement | E20: 8033.32 | G20: =E20-F20 -> 8033.32
A21: 2013-07-01 | C21: Balance due by PREMAC as per statement | F21: 25058.5 | G21: =G20+E21-F21 -> -17025.18
A22: 2013-07-18 | C22: 30 x Selector Valves supplied | E22: =(500*30)+(500*30)*0.14 -> 17100 | G22: =G21+E22-F22 -> 74.82
A23: 2013-07-18 | C23: Bad debts | F23: 74.82 | G23: =G22+E23-F23 -> -2.842170943e-13

Sheet Statement - OM Trading
A2: Manufacturers of Hydraulic Components | F2: STATEMENT DATE
A3: P.O. Box 2892, Delmas, 2210  Cnr Road 10 and Driedoring Street, Delmas | F3: DECEMBER 2014
A4: Tel: 013 668 0000  Fax: 086 659 8207
A5: VAT Number: 4810183410
A7: STATEMENT
B10: O.M. TRADING CC
B11: P.O. Box 1691
B12: Edenvale
B13: 1610
A15: DATE | C15: TRANSACTION | F15: AMOUNT | G15: BALANCE
A17: 2014-10-10 | C17: Tax Invoice - PI1234 | F17: 4195.2 | G17: =F17 -> 4195.2
A55: + 90 Days | C55: 90 Days | D55: 60 Days | E55: 30 Days | F55: Current | G55: Total Due
D56: =F17 -> 4195.2 | G56: =SUM(A56:F56) -> 4195.2

Sheet Statement - Countywide
A2: Manufacturers of Hydraulic Components | F2: STATEMENT
A3: P.O. Box 2892, Delmas, 2210  Cnr Road 10 and Driedoring Street, Delmas | F3: MARCH 2015
A4: Tel: 013 668 0000  Fax: 086 659 8207
A5: VAT Number: 4810183410
A7: STATEMENT
B10: COUNTRYWIDE GEARBOX REPAIRS
B11: P.O. Box 25061
B12: East Rand
B13: 1462
A16: DATE | C16: TRANSACTION | F16: AMOUNT | G16: BALANCE
A18: 2015-03-01 | C18: Balance brought forward | F18: 5871 | G18: =F18 -> 5871
A19: 2015-03-04 | C19: Payment - Thank You! | F19: -5871 | G19: =G18+F19 -> 0
A20: 2015-03-09 | C20: Tax Invoice - PI1393 | F20: 5871 | G20: =G19+F20 -> 5871
A55: + 90 Days | C55: 90 Days | D55: 60 Days | E55: 30 Days | F55: Current | G55: Total Due
F56: =G20 -> 5871 | G56: =SUM(A56:F56) -> 5871

Sheet Statement - SA Tube OFS
A2: Manufacturers of Hydraulic Components | F2: STATEMENT
A3: P.O. Box 2892, Delmas, 2210  Cnr Road 10 and Driedoring Street, Delmas | F3: JANUARY 0214
A4: Tel: 013 668 0000  Fax: 086 659 8207
A5: VAT Number: 4810183410
A7: STATEMENT
B10: SA TUBE & HONING
B11: PO Box 826
B12: Welkom
B13: 9459
A16: DATE | C16: TRANSACTION | F16: AMOUNT | G16: BALANCE
A18: 2013-10-30 | C18: Tax Invoice - PI0823 | F18: 1368 | G18: =F18 -> 1368
A19: 2013-11-21 | C19: Tax Invoice - PI0868 | F19: 684 | G19: =G18+F19 -> 2052
A55: + 90 Days | C55: 90 Days | D55: 60 Days | E55: 30 Days | F55: Current | G55: Total Due
C56: =F18 -> 1368 | D56: =F19 -> 684 | G56: =SUM(A56:F56) -> 2052

Sheet Remittance
M1: REMITTANCE ADVICE
M2: Date : | N2: 2012-09-11
A3: Manufacturers of Hydraulic Components | M3: Page : | N3: 1
A4: P.O. Box 2892, Delmas, 2210  Cnr Road 10 and Driedoring Street, Delmas | M4: Acc Number : | N4: TUR01
A5: Tel: 013 668 0000  Fax: 086 659 8207
A6: VAT Number: 4810183410
A8: REMITTANCE ADVICE | M8: PREMAC, a division of AGRIGEL (PTY) Ltd.
M10: P.O. Box 2892
A11: ALPHA HARDCHROME CC | M11: Delmas
A12: P.O. Box 17859 | M12: 2210
A13: Sunward Park
A14: 1470
A16: Account | B16: Date | E16: Page | M16: Account | N16: Date | O16: Page
A17: TUR01 | B17: 2012-09-11 | E17: 1 | M17: TUR01 | N17: 2012-09-11 | O17: 1
A18: DATE | B18: REFERENCE | D18: DESCRIPTION | G18: DEBIT | I18: CREDIT | M18: DATE | N18: REFERENCE | O18: AMOUNT
A20: 2012-05-03 | C20: 419199 | E20: Tax Invoice | G20: 387.6 | M20: 2012-05-03 | N20: 419199 | O20: 387.60D
A21: 2012-05-16 | C21: 420579 | E21: Tax Invoice | G21: 1570.73 | M21: 2012-05-16 | N21: 420579 | O21: 1570.73D
A22: 2012-07-02 | D22: Payment | I22: =SUM(G20:H21) -> 1958.33 | M22: 2012-07-02 | O22: 1958.33C
A23: 2012-05-16 | C23: 420626 | E23: Tax Invoice | G23: 215.65 | M23: 2012-05-16 | N23: 420626 | O23: 215.65D
A24: 2012-06-04 | C24: 422413 | E24: Tax Invoice | G24: 11.4 | M24: 2012-06-04 | N24: 422413 | O24: 11.4D
A25: 2012-06-04 | C25: 422414 | E25: Tax Invoice | G25: 207.48 | M25: 2012-06-04 | N25: 422414 | O25: 207.48D
A26: 2012-06-05 | C26: 422554 | E26: Tax Invoice | G26: 184.66 | M26: 2012-06-05 | N26: 422554 | O26: 184.66D
A27: 2012-06-27 | C27: 425008 | E27: Tax Invoice | G27: =1390.8-18.24 -> 1372.56 | M27: 2012-06-27 | N27: 425008 | O27: 1372.56D
A28: 2012-08-21 | D28: Payment | I28: =1991.75 -> 1991.75 | M28: 2012-08-21 | O28: 1991.75C
A29: 2012-06-27 | C29: 425008 | E29: Tax Invoice | G29: 18.24 | M29: 2012-06-27 | N29: 425008 | O29: 18.24D
A30: 2012-07-05 | C30: 425827 | E30: Tax Invoice | G30: 866.09 | M30: 2012-07-05 | N30: 425827 | O30: 866.09D
A31: 2012-07-06 | C31: 425910 | E31: Tax Invoice | G31: 307.8 | M31: 2012-07-06 | N31: 425910 | O31: 307.8D
A32: 2012-07-09 | C32: 22658 | E32: Credit Note | I32: 171 | M32: 2012-07-09 | N32: 22658 | O32: 171C
A33: 2012-07-09 | C33: 426065 | E33: Tax Invoice | G33: 328.32 | M33: 2012-07-09 | N33: 426065 | O33: 328.32D
A34: 2012-07-09 | C34: 426133 | E34: Tax Invoice | G34: 766.08 | M34: 2012-07-09 | N34: 426133 | O34: 766.08D
A35: 2012-09-03 | D35: Payment | I35: =SUM(G29:H34)-I32 -> 2115.53 | M35: 2012-09-03 | O35: 2155.53C
A36: 2012-07-20 | C36: 427392 | E36: Tax Invoice | G36: 1436.4 | M36: 2012-07-20 | N36: 427392 | O36: 1436.4D
A37: 2012-09-11 | D37: Payment | I37: 1436.4 | M37: 2012-09-11 | O37: 1436.40C
A38: 2012-08-01 | C38: 428470 | E38: Tax Invoice | G38: 1869.6 | M38: 2012-08-01 | N38: 428470 | O38: 1869.6D
A39: 2012-08-02 | C39: 428600 | E39: Tax Invoice | G39: 521.55 | M39: 2012-08-02 | N39: 428600 | O39: 521.55D
A40: 2012-08-02 | C40: 428618 | E40: Tax Invoice | G40: 521.55 | M40: 2012-08-02 | N40: 428618 | O40: 521.55D
A41: 2012-08-28 | C41: 430787 | E41: Tax Invoice | G41: 188.1 | M41: 2012-08-28 | N41: 430787 | O41: 188.1D
A42: 2012-08-28 | C42: 430833 | E42: Tax Invoice | G42: 1322.4 | M42: 2012-08-28 | N42: 430833 | O42: 1322.4D
A43: 2012-08-28 | C43: 430852 | E43: Tax Invoice | G43: 2052 | M43: 2012-08-28 | N43: 430852 | O43: 2052D
A44: 2012-09-04 | C44: 431652 | E44: Tax Invoice | G44: 4195.2 | M44: 2012-09-04 | N44: 431652 | O44: 4195.2D
A51: 120+ Days | C51: 90 Days | E51: 60 Days | F51: 30 Days | H51: Current | M51: Amount Due : | N51: =H54 -> 10670.4
F52: =SUM(G38:H43) -> 6475.2 | H52: =G44 -> 4195.2 | M52: Amount Paid : | N52: =I37+I35+I28+I22 -> 7502.01
H53: Total Due | M53: Comments :
H54: =SUM(A52:I52) -> 10670.4

Sheet Delivery Note
E1: Invoice No: | F1: D00886
E2: Date: | F2: =TODAY() -> 2022-03-10
A3: P.O. Box 2892, Delmas, 2210  Cnr Road 10 and Driedoring Street, Delmas
A4: Tel: 013 668 0000  Fax: 086 659 8207
A5: VAT Number: 4810183410
A7: TAX INVOICE
A9: SUPPLIER: | C9: SHIP TO:
B10: CASH CUSTOMER | D10: Collect
B12: Att: Jaco
A15: LINE | B15: DESCRIPTION | D15: QUANTITY | E15: PRICE PER EA | F15: TOTAL
I16: Fuel Filter CX0708 | K16: 1 | L16: 123.65
A17: 1 | B17: FUEL FILTER (CX0708) | D17: 1 | E17: 123.65 | F17: =D17*E17 -> 123.65 | I17: Oil Filter JX0810 | K17: 1 | L17: 112.25
A18: 2 | B18: OIL FILTER (JX0810) | D18: 1 | E18: 112.25 | F18: =D18*E18 -> 112.25 | I18: Air Filter TC26703 | K18: 1 | L18: 379.85
A19: 3 | B19: AIR FILTER (TC26703) | D19: 1 | E19: 379.85 | F19: 379.85 | I19: Cat Coolant 1L | K19: 1 | L19: 75.00
A20: 4 | B20: CAT COOLANT 1LT | D20: 1 | E20: 75 | F20: 75 | I20: Multi Grade 15W40 20L | K20: 1 | L20: 1140.00
A21: 5 | B21: MULTI GRADE 15W40 20LT | D21: 1 | E21: 1140 | F21: 1140 | I21: Radiator Cap Size 2 | K21: 1 | L21: 185.50
A22: 6 | B22: RADIATOR CAP SIZE 2 | D22: 1 | E22: 185.5 | F22: 185.5 | I22: Door Sealer Spunge 10M | K22: 1 | L22: 345.00
A23: 7 | B23: DOOR SEALER SPUNGE 10M | D23: 1 | E23: 345 | F23: 345 | I23: De-Grease Supreme 5L | K23: 1 | L23: 60.00
A24: 8 | B24: DE-GREASE SUPREME 5L | D24: 1 | E24: 60 | F24: 60 | I24: 3 Way 16 Amp IGN Swtch | K24: 1 | L24: 445
A25: 9 | B25: 3 WAY 16 AMP IGN SWITCH | D25: 1 | E25: 445 | F25: 445
A50: Received in good condition: | E50: Total Stockroom Value: | F50: =SUM(F17:F49) -> 2866.25
E51: VAT Total: | F51: =F50*0.14 -> 401.275
A52: Signature | E52: Balance Due: | F52: =F50+F51 -> 3267.525
A54: Received in good condition:
B56: Signature | D56: Date

Sheet Purchase Order
E1: Order Number: | F1: PNG009
A2: Manufacturers of Hydraulic Components | E2: Order Date: | F2: =TODAY() -> 2022-03-10
A3: P.O. Box 2892, Delmas, 2210  Cnr Road 10 and Driedoring Street, Delmas
A4: Tel: 013 668 0000  Fax: 086 659 8207
A5: VAT Number: 4810183410
A7: PURCHASE ORDER
A9: SUPPLIER: | C9: SHIP TO:
B10: ATLAS OIL & CHEMICAL DELMAS | D10: PREMAC
B11: P.O. Box 6098 | D11: Plot 58, c/o Road 10 and Driedoring St.
B12: Dunswart | D12: Delmas
B13: 1508 | D13: Mpumalanga
A15: LINE | B15: DESCRIPTION | D15: QTY | E15: PRICE PER EA | F15: TOTAL
B17: Please supply us with the following:
A19: 1 | B19: Rimula R4 X 15W40 CI-4-209LT | D19: 627 | E19: 35.99 | F19: =D19*E19 -> 22565.73
A21: 2 | B21: AF152 Engine Super, Radiator Coolant Concentrate 20Lt | D21: 20
E47: Total Stockroom Value: | F47: =SUM(F16:F46) -> 22565.73
E48: VAT Total: | F48: =F47*15% -> 3384.8595
E49: Balance Due: | F49: =SUM(F47:F48) -> 25950.5895
A50: For and on bahalf of PREMAC, a division of AGRIGEL (PTY) Ltd.
D51: PURCHASING MANAGER

Sheet Purchase Order - Ambrosales
E1: Order Number: | F1: PNG007
A2: Manufacturers of Hydraulic Components | E2: Order Date: | F2: =TODAY() -> 2022-03-10
A3: P.O. Box 2892, Delmas, 2210  Cnr Road 10 and Driedoring Street, Delmas
A4: Tel: 013 668 0000  Fax: 086 659 8207
A5: VAT Number: 4810183410
A7: PURCHASE ORDER
A9: SUPPLIER: | C9: SHIP TO:
B10: VARCO INDUSTRIAL PRODUCTS | D10: Collect
B11: Benoni
A15: LINE | B15: DESCRIPTION | D15: QUANTITY | E15: PRICE PER EA | F15: TOTAL
B17: Please get the following ready for Leon:
A19: 1 | B19: Oring - 2-119 in Viton | D19: 16
A21: 2 | B21: Oring - 2-117 in Viton | D21: 6
A23: 3 | B23: Oring - 2-210 in Viton | D23: 10
A25: 4 | B25: Oring - 2-118 in Viton | D25: 10
A27: 5 | B27: Oring - 2-022 in Viton | D27: 6
A29: 6 | B29: Oring - 2-023 in Viton | D29: 6
A31: 7 | B31: Oring - 3-910 in Viton | D31: 6
A33: 8 | B33: Oring - 2-015 in Viton | D33: 10
A35: 9 | B35: Oring - 2-016 in Viton | D35: 10
E47: Total Stockroom Value: | F47: =SUM(F16:F46) -> 0
E48: VAT Total: | F48: =F47*14% -> 0
E49: Balance Due: | F49: =SUM(F47:F48) -> 0
A50: For and on bahalf of PREMAC, a division of AGRIGEL (PTY) Ltd.
D51: PURCHASING MANAGER

Sheet Purchase Order - HDC
E1: Order Number: | F1: PNG006
A2: Manufacturers of Hydraulic Components | E2: Order Date: | F2: =TODAY() -> 2022-03-10
A3: P.O. Box 2892, Delmas, 2210  Cnr Road 10 and Driedoring Street, Delmas
A4: Tel: 013 668 0000  Fax: 086 659 8207
A5: VAT Number: 4810183410
A7: PURCHASE ORDER
A9: SUPPLIER: | C9: SHIP TO:
B10: HIGH DUTY CASTINGS | D10: Collect
B11: P.O. Box 157
B12: Boksburg
B13: 1460
A15: LINE | B15: DESCRIPTION | D15: QUANTITY | E15: PRICE PER EA | F15: TOTAL
B17: Please supply us with the following:
A19: 1 | B19: BL 18859 - Selector Valves | D19: 100
A21: 2 | B21: BL 18848 - V150 Inlet Covers | D21: 100
E46: Total Stockroom Value: | F46: =SUM(F16:F45) -> 0
E47: VAT Total: | F47: =F46*14% -> 0
E48: Balance Due: | F48: =SUM(F46:F47) -> 0
A49: For and on bahalf of PREMAC, a division of AGRIGEL (PTY) Ltd.
D50: PURCHASING MANAGER

Sheet Purchase Order - KPL
E1: Order Number: | F1: PNG005
A2: Manufacturers of Hydraulic Components | E2: Order Date: | F2: =TODAY() -> 2022-03-10
A3: P.O. Box 2892, Delmas, 2210  Cnr Road 10 and Driedoring Street, Delmas
A4: Tel: 013 668 0000  Fax: 086 659 8207
A5: VAT Number: 4810183410
A7: PURCHASE ORDER
A9: SUPPLIER: | C9: SHIP TO:
B10: KPL DIE CASTINGS | D10: Collect
B11: P.O. Box 2624
B12: Bedfordview
B13: 2008
A15: LINE | B15: DESCRIPTION | D15: QUANTITY | E15: PRICE PER EA | F15: TOTAL
B17: Please supply us with the following:
A19: 1 | B19: 3734 - Agrigel CAM | D19: 300
A20: 2 | B20: 3735 - AGRIGEL Piston | D20: balance of material
B22: in Azim 5 - to be delivered
B28: Please confirm price and advise on delivery date
E46: Total Stockroom Value: | F46: =SUM(F16:F45) -> 0
E47: VAT Total: | F47: =F46*14% -> 0
E48: Total PO Value: | F48: =SUM(F46:F47) -> 0
A49: For and on bahalf of PREMAC, a division of AGRIGEL (PTY) Ltd.
D50: PURCHASING MANAGER

Sheet Quotation
A2: Manufacturers of Hydraulic Components | F2: Quote Number: | G2: NG1066
A3: P.O. Box 2892, Delmas, 2210  Cnr Road 10 and Driedoring Street, Delmas | F3: Date: | G3: =TODAY() -> 2022-03-10
A4: Tel: 013 668 0000  Fax: 086 659 8207
A5: VAT Number: 4810183410
A7: QUOTATION
A10: CUSTOMER: | D10: SHIP TO:
B11: EHD COMPONENTS 2005 (PTY) Ltd | E11: Att: Franco van Deventer
B12: Corner Hubert & Marshall Streets | E12: VAT No: 4790223137
B13: Marshalltown
B14: Johannesburg
B15: 2001
A17: LINE | B17: PART NO | C17: DESCRIPTION | E17: QTY | F17: PRICE EA | G17: TOTAL
A19: 1 | B19: V75-3 | C19: V75 3 Bank Control Valve | E19: 2 | F19: 4340 | G19: =E19*F19 -> 8680
A21: 2 | B21: V75-CS-4 | C21: V75 Center Section | E21: 2 | F21: 1680 | G21: =E21*F21 -> 3360
F51: Subtotal: | G51: =SUM(G19:G50) -> 12040
F52: VAT Total: | G52: =G51*0.15 -> 1806
F53: TOTAL: | G53: =SUM(G51:G52) -> 13846

Sheet Quotation (2)
A2: Manufacturers of Hydraulic Components | F2: Quotation Number: | G2: FS1115
A3: P.O. Box 2892, Delmas, 2210  Cnr Road 10 and Driedoring Street, Delmas | F3: Quotation Date: | G3: =TODAY() -> 2022-03-10
A4: Tel: 013 668 0000  Fax: 086 659 8207
A5: VAT Number: 4810183410
A7: QUOTATION
A9: CUSTOMER: | D9: SHIP TO:
B10: Safegas | E10: Collect
B11: 113 Stamford Hill Road
B12: Greyville
B13: Durban
B15: Att: Hamza
B16: Tel: 084 714 4428
A18: LINE | B18: PART NO | C18: DESCRIPTION | E18: QTY | F18: PRICE EA | G18: TOTAL
A20: 1 | B20: FACE SHIELD | C20: Face Shield (Medium) | E20: 1 | F20: 45 | G20: =E20*F20 -> 45
A22: 2 | B22: FACE SHIELD | C22: Face Shield (Large) | E22: 1 | F22: 45 | G22: =E22*F22 -> 45
A24: 3 | B24: COURIER | C24: The Courier Guy | E24: 1 | F24: 110 | G24: =E24*F24 -> 110
F49: Subtotal: | G49: =SUM(G20:G48) -> 200
F50: VAT Total: | G50: =(G49/1.15)*0.15 -> 26.08695652
F51: TOTAL: | G51: =G49 -> 200

Sheet STD Repair Quote (2)
A2: Manufacturers of Hydraulic Components | H2: Quotation Number: | I2: NG1066
A3: P.O. Box 2892, Delmas, 2210  Cnr Road 10 and Driedoring Street, Delmas | H3: Quotation Date: | I3: =TODAY() -> 2022-03-10
A4: Tel: 013 668 0000  Fax: 086 659 8207
A5: VAT Number: 4810183410
A7: VALVE REPAIR QUOTATION
A10: CUSTOMER: | F10: SHIP TO:
C11: J.A. ENGINEERING | G11: Collect
C12: Cnr Innes & Bismut Street
C13: Jet Park
A17: VALVE DETAILS : | E17: J401/1058 REXROTH VALVE
E18: Serial Number: 5 / Job No: E3389
G20: QTY | H20: PRICE EA | I20: TOTAL
B22: A) | C22: REPLACE SPOOL O/SIZE
C23: 1. | D23: Grind and chrome
C24: 2. | D24: Hone housing and fit spool
B25: B) | C25: PORT RELIEFS
C26: 1. | D26: Replace
C27: 2. | D27: Repair and replace parts
B28: C) | C28: LOAD HOLDING CHECK
C29: 1. | D29: Replace poppet and spring
C30: 2. | D30: Replace spring
B31: D) | C31: ANTI CAV CHECK
C32: 1. | D32: Replace
C33: 2. | D33: Repair
B34: E) | C34: MAIN RELIEF VALVE | H34: .
C35: 1. | D35: Replace
C36: 2. | D36: Repair
B37: F) | C37: VALVE BODIES
C38: 1. | D38: Work Sections - New
C39: 2. | D39: Inlet Cover
C40: 3. | D40: Outlet Cover
C41: HANDLE ASSEMBLIES
C42: HANDLE BRACKETS
C43: BONNETS
C44: SPRING ASSEMBLY (STANDARD)
C45: SPRING ASSEMBLY (FLOAT)
C46: SPRING ASSEMBLY (REGEN)
C47: POWER BEYOND
C48: CLEVIS
C49: SEAL KIT | G49: 1 | H49: 180 | I49: =H49*G49 -> 180
C50: SUNDRY PARTS - LEVER, KNOB, BASE, BOOT | G50: 1 | H50: 1460 | I50: =H50*G50 -> 1460
C51: LABOUR, ASSEMBLY AND TEST | G51: 1 | H51: 490 | I51: =H51*G51 -> 490
H53: Total Stockroom Value: | I53: =SUM(I22:I52) -> 2130
H54: VAT Total:
H55: Balance Due: | I55: =SUM(I53:I54) -> 2130

Sheet STD Repair Quote (4)
A2: Manufacturers of Hydraulic Components | H2: Quotation Number: | I2: NG1066
A3: P.O. Box 2892, Delmas, 2210  Cnr Road 10 and Driedoring Street, Delmas | H3: Quotation Date: | I3: =TODAY() -> 2022-03-10
A4: Tel: 013 668 0000  Fax: 086 659 8207
A5: VAT Number: 4810183410
A7: VALVE REPAIR QUOTATION
A10: CUSTOMER: | F10: SHIP TO:
C11: J.A. ENGINEERING | G11: Collect
C12: Cnr Innes & Bismut Street
C13: Jet Park
A17: VALVE DETAILS : | E17: J401/1058 REXROTH VALVE
E18: Serial Number: 5 / Job No: E3389
G20: QTY | H20: PRICE EA | I20: TOTAL
B22: A) | C22: HYDRAULIC
C23: 1. | D23: Repair/Replace spool section
C24: 2. | D24: Chrome and grind, hone housing & fit/modify spool
C25: 3. | D25: Port reliefs:
D26: - Replace | G26: 1 | I26: =G26*H26 -> 0
D27: - Test and adjust pressures | G27: 12 | H27: 350 | I27: =G27*H27 -> 4200
C28: 4. | D28: Inlet section seal kit | G28: 1 | H28: 700 | I28: 700
C29: 5. | D29: Spool section seal kit | G29: 8 | H29: 750 | I29: 6000
C30: 6. | D30: Outlet section seal kit | G30: 1 | H30: 500 | I30: 500
C31: 7. | D31: Spool seal kit | G31: 7 | H31: 300 | I31: 2100
C32: 8. | D32: Main relief valve: adjust, repair or replace | G32: 1 | H32: 250 | I32: 250
C33: 9. | D33: New fittings / repaired
C34: 10. | D34: Sundry spares, cap screws, bolts, nuts and plates
C35: 11. | D35: Spool stroke limiters
C36: 12. | D36: Strip, clean, inspect and assess | G36: 6 | H36: 750 | I36: =G36*H36 -> 4500
C37: 13. | D37: Assembly | G37: 7 | H37: 750 | I37: 5250
C38: 14. | D38: Test, set flows and pressures | G38: 5 | H38: 750 | I38: 3750
B40: B) | C40: ELECTRICAL
C41: 1. | D41: Test PC Boards, LEDs and Solenoids | G41: 8 | H41: 200 | I41: =G41*H41 -> 1600
C42: 2. | D42: Test proximity switches and adjust | G42: 8 | H42: 350 | I42: 2800
H53: Total Stockroom Value: | I53: =SUM(I22:I52) -> 31650
H54: VAT Total: | I54: =I53*0.14 -> 4431
H55: Balance Due: | I55: =SUM(I53:I54) -> 36081

Sheet STD Repair Quote (3)
A2: Manufacturers of Hydraulic Components | H2: Quotation Number: | I2: NG1016
A3: P.O. Box 2892, Delmas, 2210  Cnr Road 10 and Driedoring Street, Delmas | H3: Quotation Date: | I3: =TODAY() -> 2022-03-10
A4: Tel: 013 668 0000  Fax: 086 659 8207
A5: VAT Number: 4810183410
A7: VALVE REPAIR QUOTATION
A10: CUSTOMER: | F10: SHIP TO:
C11: MALOMA COLLIERY LIMITED | G11: Collect
C12: PO Box 103
C13: Matata
C14: Kingdom of Swaziland
A17: VALVE DETAILS : | E17: Possi Neutral Block
E18: Serial Number: 91142
G20: QTY | H20: PRICE EA | I20: TOTAL
B22: A) | C22: UNLOADING VALVE
C23: 1. | D23: Replace
C24: 2. | D24: Repair and replace parts | G24: 1 | H24: 1480 | I24: =H24*G24 -> 1480
B25: B) | C25: PILOT CONTROL PRESSURE
C26: 1. | D26: Replace
C27: 2. | D27: Repair and replace parts
B28: C) | C28: LOAD HOLDING CHECK VALVE
C29: 1. | D29: Replace
C30: 2. | D30: Repair and replace parts | G30: 1 | H30: 290 | I30: =H30*G30 -> 290
B31: D) | C31: STEEL BLOCK
C32: 1. | D32: Replace
C33: 2. | D33: Repair and replace parts
B34: E) | C34: MAIN RELIEF VALVE
C35: 1. | D35: Replace
C36: 2. | D36: Repair
B37: F) | C37: SEAL KIT | G37: 1 | H37: 150 | I37: =H37*G37 -> 150
B38: G) | C38: LABOUR, ASSEMBLY AND TEST | G38: 1 | H38: 550 | I38: =H38*G38 -> 550
H52: Total Stockroom Value: | I52: =SUM(I22:I51) -> 2470
H53: VAT Total:
H54: Balance Due: | I54: =SUM(I52:I53) -> 2470

Sheet Quotation - Sandvik
A2: Manufacturers of Hydraulic Components | F2: Quotation Number: | G2: NG1126
A3: P.O. Box 2892, Delmas, 2210  Cnr Road 10 and Driedoring Street, Delmas | F3: Quotation Date: | G3: =TODAY() -> 2022-03-10
A4: Tel: 013 668 0000  Fax: 086 659 8207
A5: VAT Number: 4810183410
A7: QUOTATION
A9: CUSTOMER: | D9: SHIP TO:
B10: SANDVIK MINING RSA (PTY) Ltd | E10: 1 Flambojant Street
B11: P.O. Box 57 | E11: Delmas
B12: Delmas
B13: 2210
A15: LINE | B15: PART NO | C15: DESCRIPTION | E15: QTY | F15: PRICE | G15: TOTAL
A17: 1 | B17: V150-5-TH | C17: V150 5 Spool Valve Bank, Tyre Handler | E17: 1 | F17: 17200 | G17: =E17*F17 -> 17200
C18: 5 Spools
C19: Lever operated B port
C20: Port reliefs on all ports
C21: Main relief
C22: All standard work sections
F54: Total Stockroom Value: | G54: =SUM(G16:G53) -> 17200
F55: VAT Total: | G55: =G54*15% -> 2580
F56: Balance Due: | G56: =G54+G55 -> 19780

Sheet Quotation - Sandvik (2)
A2: Manufacturers of Hydraulic Components | F2: Quotation Number: | G2: DSAC130618
A3: P.O. Box 2892, Delmas, 2210  Cnr Road 10 and Driedoring Street, Delmas | F3: Quotation Date: | G3: =TODAY() -> 2022-03-10
A4: Tel: 013 668 0000  Fax: 086 659 8207
A5: VAT Number: 4810183410
A7: REPAIR QUOTATION
A9: CUSTOMER: | D9: SHIP TO:
B10: SANDVIK MINING RSA (PTY) Ltd | E10: 1 Flambojant Street
B11: P.O. Box 57 | E11: Delmas
B12: Delmas
B13: 2210
A15: HEREUNDER PLEASE FIND THE DETAILS FOR REPAIR OF THE FOLLOWING MACHINE NUMBER:
B17: Machine Number: | C17: Delivery Note: 150996 / SMCL No: 7121212
A19: LINE | B19: PART NO | C19: DESCRIPTION | E19: QTY | F19: PRICE | G19: TOTAL
A21: 1 | B21: VALVE REPAIR | C21: 3 Spool Pilot Controller | G21: =SUM(F22:F24) -> 3910
C22: - Miscellaneous parts (plugs, knobs, etc.) | E22: 1 | F22: 2780
C23: - Seal Kit | E23: 1 | F23: 210
C24: - Labour, Assembly and Test | E24: 1 | F24: 920
A26: 2 | B26: VALVE REPAIR | C26: 4lt Accumulator | G26: =SUM(F27:F31)*2 -> 9860
C27: - Barrel: Hone, repair and/or replace parts | E27: 2 | F27: 3080
C28: - Seal Kit | E28: 2 | F28: 450
C29: - End Caps: Inspect, repair and replace parts | E29: 2 | F29: 390
C30: - Pre-charge accumulator | E30: 2 | F30: 250
C31: - Labour, Assembly and Test | E31: 2 | F31: 760
A33: 3 | B33: VALVE REPAIR | C33: 1lt Accumulator | G33: =SUM(F34:F35,F37:F38)+E36*F36 -> 3980
C34: - Barrel: Hone, repair and/or replace parts | E34: 1 | F34: 2300
C35: - Seal Kit | E35: 1 | F35: 450
C36: - End Caps: Inspect, repair and replace parts | E36: 2 | F36: 250
C37: - Pre-charge accumulator | E37: 1 | F37: 250
C38: - Labour, Assembly and Test | E38: 1 | F38: 480
F54: Total Stockroom Value: | G54: =SUM(G20:G53) -> 17750
F55: VAT Total: | G55: =G54*14% -> 2485
F56: Balance Due: | G56: =G54+G55 -> 20235

Sheet Quotation - AngloGold
A2: Manufacturers of Hydraulic Components | F2: Quotation Number: | G2: NG695
A3: P.O. Box 2892, Delmas, 2210  Cnr Road 10 and Driedoring Street, Delmas | F3: Quotation Date: | G3: =TODAY() -> 2022-03-10
A4: Tel: 013 668 0000  Fax: 086 659 8207
A5: VAT Number: 4810183410
A7: QUOTATION
A9: CUSTOMER: | D9: SHIP TO:
B10: ANGLOGOLD ASHANTI | E10: Mponeng Mine
B11: Offsite Repairs West Wits
B13: ATT: Ernest Wienand
B14: FAX: 018 700 4050
A16: LINE | B16: PART NO | C16: DESCRIPTION | E16: QTY | F16: PRICE EA | G16: TOTAL
B18: Work Request/Order Number: 31/291HS
B19: Workshop Order Number: 100/321920
A21: 1 | B21: SERVICE EXCHANGE UNIT | E21: 1 | F21: 6400 | G21: =F21*E21 -> 6400
C22: Eimco 913 Control Valve, 3 Spool
A24: 2 | B24: NEW UNIT | C24: Eimco 913 Control Valve, 3 Spool | E24: 1 | F24: 12130
F52: Total Stockroom Value: | G52: =SUM(G17:G51) -> 6400
F53: VAT Total: | G53: =G52*14% -> 896
F54: Balance Due: | G54: =G52+G53 -> 7296

Sheet STD Repair Quote
A2: Manufacturers of Hydraulic Components | H2: Quotation Number: | I2: NG820
A3: P.O. Box 2892, Delmas, 2210  Cnr Road 10 and Driedoring Street, Delmas | H3: Quotation Date: | I3: =TODAY() -> 2022-03-10
A4: Tel: 013 668 0000  Fax: 086 659 8207
A5: VAT Number: 4810183410
A7: VALVE REPAIR QUOTATION
A10: CUSTOMER: | F10: SHIP TO:
C11: MALOMA COLLIERY LTD | G11: Collect
C12: PO Bo 103
C13: Matata
C14: Kingdom of Swaziland
A17: VALVE DETAILS : | E17: V150 2 Bank, Steering and Eject Valve
E18: Serial No: RF13
G20: QTY | H20: PRICE EA | I20: TOTAL
B22: A) | C22: REPLACE SPOOL O/SIZE
C23: 1. | D23: Grind and chrome
C24: 2. | D24: Hone housing and fit spool
B25: B) | C25: PORT RELIEFS
C26: 1. | D26: Replace
C27: 2. | D27: Repair and replace parts | G27: 2 | H27: 850 | I27: =H27*G27 -> 1700
B28: C) | C28: LOAD HOLDING CHECK
C29: 1. | D29: Replace poppet and spring
C30: 2. | D30: Replace spring
B31: D) | C31: ANTI CAV CHECK
C32: 1. | D32: Replace
C33: 2. | D33: Repair
B34: E) | C34: MAIN RELIEF VALVE
C35: 1. | D35: Replace
C36: 2. | D36: Repair | G36: 1 | H36: 1320 | I36: =H36*G36 -> 1320
B37: F) | C37: VALVE BODIES
C38: 1. | D38: Work Sections
C39: 2. | D39: Inlet Cover
C40: 3. | D40: Outlet Cover
C41: HANDLE ASSEMBLIES
C42: HANDLE BRACKETS
C43: BONNETS
C44: SPRING ASSEMBLY (STANDARD)
C45: SPRING ASSEMBLY (FLOAT)
C46: SPRING ASSEMBLY (REGEN)
C47: CLEVIS
C48: SEAL KIT | G48: 1 | H48: 450 | I48: =H48*G48 -> 450
C50: LABOUR, ASSEMBLY AND TEST | G50: 1 | H50: 900 | I50: =H50*G50 -> 900
H53: Total Stockroom Value: | I53: =SUM(I22:I52) -> 4370
H54: VAT Total: | I54: 0
H55: Balance Due: | I55: =SUM(I53:I54) -> 4370

Sheet AGRIGEL Quote
F2: Quotation Number: | G2: AG529
F3: Quotation Date: | G3: =TODAY() -> 2022-03-10
A4: Tel: 013 668 0000 Fax: 086 659 8207
A5: REG No: 1998/24699/07 V AT No: 4810183410
A7: QUOTATION
A10: CUSTOMER: | D10: SHIP TO:
B11: CLAYTON BUTLER | E11: Email: clayton@truenw.co.za
A17: LINE | B17: PART NO | C17: DESCRIPTION | E17: QTY | F17: PRICE EA | G17: TOTAL
A19: 1 | B19: LFP-6 | C19: 6 Row Liquid Fertiliser Pump | E19: 1 | F19: 11760 | G19: =E19*F19 -> 11760
A21: 2 | B21: LFM-100 | C21: Monitor | E21: 6 | F21: 185 | G21: =E21*F21 -> 1110
A23: 3 | B23: LFC-200 | C23: End of line check valve | E23: 6 | F23: 165 | G23: =E23*F23 -> 990
B26: Optional/Recommended Extras
B28: LFF-100 | C28: Filter | F28: 500
B30: SPARES | C30: 40mm Valves | F30: 150
F52: Total Stockroom Value: | G52: =SUM(G19:G51) -> 13860
F53: VAT Total: | G53: =G52*14% -> 1940.4
F54: Balance Due: | G54: =G52+G53 -> 15800.4

Sheet AGRIGEL Purchase ORder
F2: PURCHASE ORDER NUMBER: | G2: ANG111
F3: Date: | G3: =TODAY() -> 2022-03-10
A4: Tel: 013 668 0000 Fax: 086 659 8207
A5: REG No: 1998/24699/07 V AT No: 4810183410
A7: PURCHASE ORDER
A9: SUPPLIER:
B10: PLASTAMID
B11: Kempton Park
B13: Att: Renee Brennan
B16: Please supply us with the following:
A18: LINE | B18: DESCRIPTION | E18: QTY | F18: PRICE EA | G18: TOTAL
A20: 1 | B20: Hytrel 4056 (per kg) | E20: 150 | F20: 178.3 | G20: =E20*F20 -> 26745
A22: 2 | B22: Hytrel 3078 (per kg) | E22: 25 | F22: 0 | G22: 0
A52: For and on behalf of Agrigel (PTY) Ltd. | F52: Total Stockroom Value: | G52: =SUM(G20:G51) -> 26745
A53: Purchasing Manager: | F53: VAT Total: | G53: =G52*15% -> 4011.75
F54: PO Value: | G54: =G52+G53 -> 30756.75

Sheet AGRIGEL Tax Invoice
F2: Tax Invoice Number: | G2: AG518
F3: Invoice Date: | G3: 2015-08-28
A4: Tel: 013 668 0000 Fax: 086 659 8207
A5: REG No: 1998/24699/07 V AT No: 4810183410
A7: TAX INVOICE
A10: CUSTOMER: | D10: SHIP TO: | E10: Collect
B11: MJ POTGIETER
B12: 12 Tsitsikamma
B13: 30 Karee Avenue
B14: Delmas
B15: 2210
A17: LINE | B17: PART NO | C17: DESCRIPTION | E17: QTY | F17: PRICE EA | G17: TOTAL
A19: 1 | B19: LFP-11 | C19: Serviced - 11 Row Liquid Fertilizer Pump | E19: 4 | F19: 570 | G19: =E19*F19 -> 2280
C20: Complete with monitors
A52: Received in good condition: | F52: Total Stockroom Value: | G52: =SUM(G19:G51) -> 2280
F53: VAT Total: | G53: 0
A54: Signature | C54: Date | F54: Balance Due: | G54: =G52+G53 -> 2280
A56: Received in good condition:
B58: Signature | D58: Date

Sheet AGRIGEL Delivery Note
F2: Delivery Note Number: | G2: AG513
F3: Date: | G3: =TODAY() -> 2022-03-10
A4: Tel: 013 668 0000 Fax: 086 659 8207
A5: REG No: 1998/24699/07 V AT No: 4810183410
A7: DELIVERY NOTE
A10: CUSTOMER: | D10: SHIP TO: | E10: Collect
B11: FERTEX SOLUTIONS
B12: P.O. Box 170
B13: Big Bend
B14: L311
B15: Swaziland
A17: LINE | B17: PART NO | C17: DESCRIPTION | E17: QTY | F17: PRICE EA | G17: TOTAL
A19: 1 | B19: SERVICE-11 | C19: Serviced - 11 Row Liquid Fertilizer Pump | E19: 4
C20: Complete with check valves and monitors
A53: Received in good condition:
B55: Signature | D55: Date

Sheet AGRIGEL Statement
A2: Tel: 013 668 0000  Fax: 086 659 8207
A3: VAT Number: 4810183410
A5: STATEMENT
B8: P.R. CILLIERS | F8: STATEMENT DATE:
B9: Posbus 126
B10: Balfour | F10: =TODAY() -> 2022-03-10
B11: 2410
B12: Fax: 017 773 1007
A15: DATE | C15: TRANSACTION | F15: AMOUNT | G15: BALANCE
A17: 2010-12-02 | C17: Tax Invoice - 1106 | F17: 7535.4 | G17: =F17 -> 7535.4
A18: 2012-09-03 | C18: Tax Invoice - AI0231 | F18: 12517.2 | G18: =G17+F18 -> 20052.6
A19: 2012-11-01 | C19: Credit Note - 1106 | F19: -7535.4 | G19: =G18+F19 -> 12517.2
A54: + 90 Days | C54: 90 Days | D54: 60 Days | E54: 30 Days | F54: Current | G54: Total Due
C55: =F18 -> 12517.2 | G55: =SUM(A55:F55) -> 12517.2

Sheet AGRIGEL Credit Note
A1: Tegnologie vir die landbou
A2: AGRIGEL | E2: Credit Note No: | F2: CN00125
A3: Agricultural Technology | E3: Date: | F3: =TODAY() -> 2022-03-10
A4: Tel: 087 754 4747 Fax: 086 659 8207
A5: REG No: 81/01176/07 V AT No: 4430110512
A7: CREDIT NOTE
A10: CUSTOMER:
B11: NWK Beperk | D11: Vloeibare Kunsmisaanleg
B12: Posbus 107 | D12: 1E Laan Verlenging
B13: Lichtenburg | D13: Lottieshalte
B14: 2740 | D14: Lichtenburg
A17: LINE | B17: DESCRIPTION | E17: QUANTITY | F17: PRICE
A19: 1 | B19: 6 Row Converted to 8 Row | E19: 3 | F19: 1685.2
B20: Danie Erasmus - 20% discount
E55: Total Stockroom Value: | F55: =F19 -> 1685.2
E56: VAT Total: | F56: =F55*14% -> 235.928
E57: Credit Balance: | F57: =F55+F56 -> 1921.128

Sheet InfantMed Statement
A2: a division of AGRIGEL (PTY) Ltd. | F2: STATEMENT
A3: P.O. Box 2892, Delmas, 2210  Cnr Road 10 and Driedoring Street, Delmas | F3: AUGUST 2013
A4: Tel: 013 668 0000  Fax: 086 659 8207
A5: VAT Number: 4810183410
A7: STATEMENT
B10: QUECK BABY
B11: Att: Melinda Queck
A15: DATE | C15: TRANSACTION | F15: AMOUNT | G15: BALANCE
A17: 2013-08-05 | C17: Tax Invoice - II0671 | F17: 570 | G17: =F17 -> 570
A53: + 90 Days | C53: 90 Days | D53: 60 Days | E53: 30 Days | F53: Current | G53: Total Due
F54: =G17 -> 570 | G54: =G17 -> 570
